bitfinex-derivatives/quotes_BTCF0:USTF0_20210108
["timestamp","ask_amount","ask_price","bid_price","bid_amount"]
[1610117640862,0.00029672,41267.0,41259.0,0.4611]
[1610117641263,0.00029672,41268.0,41260.0,0.00026125]
[1610117641464,0.00029672,41266.0,41260.0,0.00026125]
[1610117641765,0.07703,41269.0,41245.0,0.11677]
[1610117641766,0.00029672,41267.0,41246.0,0.02750098]
[1610117642167,0.00029672,41266.0,41246.0,0.00026125]
[1610117642568,0.00029672,41266.0,41251.0,3.1912]
[1610117642769,0.00029672,41266.0,41252.0,0.00026125]
[1610117643070,0.00029672,41265.0,41252.0,0.00026125]
[1610117643672,0.00029672,41268.0,41252.0,0.00026125]
[1610117643870,0.00029672,41268.0,41251.0,3.1912]
[1610117644168,0.20912608,41252.0,41251.0,3.1912]
[1610117644368,0.13632608,41252.0,41245.0,0.11677]
[1610117644569,0.07703,41269.0,41251.0,0.00026124]
[1610117644970,1.0,41273.0,41246.0,0.02750078]
[1610117645171,0.00029672,41268.0,41252.0,0.00026124]
[1610117645372,0.09196,41270.0,41247.0,0.00026124]
[1610117645872,0.0002967,41269.0,41248.0,0.00026122]
[1610117646072,0.0002967,41269.0,41250.0,3.6301]
[1610117646471,0.09196,41270.0,41251.0,0.00026122]
[1610117646673,0.13632608,41252.0,41251.0,0.00026122]
[1610117646974,0.13632608,41252.0,41250.0,3.6301]
[1610117654173,0.13632608,41252.0,41245.0,0.11677]
[1610117654374,0.13632608,41252.0,41251.0,2.8522]
[1610117655876,0.09196,41270.0,41251.0,2.8524612]
[1610117656076,0.00735427,41286.0,41251.0,2.8524612]
[1610117656276,0.00737061,41295.0,41252.0,0.00026118]
[1610117656476,0.02197777,41300.0,41252.0,0.00026118]
[1610117656675,0.13632608,41271.0,41269.0,0.13632608]
[1610117657274,0.13632608,41271.0,41270.0,2.8081]
[1610117657575,0.09868,41280.0,41270.0,2.8081]
[1610117657776,0.09868,41280.0,41270.0,2.80836107]
[1610117657979,1.0,41310.0,41271.0,0.00026105]
[1610117658177,0.00738669,41313.0,41271.0,0.00026105]
[1610117658380,0.2941,41315.0,41271.0,0.00026105]
[1610117658580,0.2941,41315.0,41282.0,0.13632608]
[1610117658581,0.0002965,41312.0,41282.0,0.13632608]
[1610117658877,0.00738477,41317.0,41285.0,0.5714]
[1610117658878,0.0002965,41314.0,41285.0,0.5714]
[1610117659078,0.00738477,41317.0,41285.0,0.5714]
[1610117659278,0.0002965,41313.0,41285.0,0.5714]
[1610117659578,0.1569,41312.0,41285.0,0.5714]
[1610117659878,0.15719648,41312.0,41285.0,0.5714]
[1610117660079,0.1569,41312.0,41286.0,0.00026098]
[1610117660579,0.1569,41312.0,41285.0,0.5714]
[1610117660780,0.13632608,41291.0,41285.0,0.5714]
[1610117661084,0.23602608,41291.0,41285.0,0.5714]
[1610117662681,0.23602608,41291.0,41290.0,0.13632608]
[1610117664283,0.23602608,41291.0,41290.0,3.92192608]
[1610117665581,0.23602608,41291.0,41290.0,3.7856]
[1610117666381,0.13632608,41291.0,41290.0,3.7856]
[1610117666783,0.13632608,41291.0,41290.0,3.92192608]
[1610117671083,0.13632608,41291.0,41284.0,0.12706]
[1610117671286,0.13632608,41291.0,41275.0,0.08307]
[1610117671490,0.13632608,41291.0,41272.0,4.0561]
[1610117672887,0.09053,41303.0,41273.0,0.13632608]
[1610117673289,0.00029639,41302.0,41273.0,0.13632608]
[1610117673891,0.00029639,41302.0,41272.0,4.0561]
[1610117673892,0.00029639,41302.0,41265.0,0.09314]
[1610117674090,1.0,41274.0,41256.0,0.08726]
[1610117674290,1.0,41274.0,41219.0,6.6156]
[1610117674291,1.5,41273.0,41219.0,0.2812]
[1610117674594,2.8982,41273.0,41220.0,2.46633835]
[1610117674791,0.13632608,41233.0,41232.0,0.13632608]
[1610117675893,0.13632608,41233.0,41219.0,2.9174]
[1610117676092,0.13632608,41233.0,41197.0,2.46776547]
[1610117676291,0.13632608,41233.0,41200.0,2.9798]
[1610117676791,0.1192,41246.0,41212.0,0.13632608]
[1610117676992,0.1192,41246.0,41212.0,0.22276608]
[1610117677195,0.1192,41246.0,41213.0,0.00026076]
[1610117677794,0.1192,41246.0,41212.0,0.22276608]
[1610117678294,1.0,41244.0,41212.0,0.22276608]
[1610117678692,0.13632608,41213.0,41212.0,0.22276608]
[1610117679994,0.13632608,41213.0,41212.0,0.79876608]
[1610117680796,0.1192,41246.0,41212.0,0.79876608]
[1610117680997,0.1192,41246.0,41212.0,0.22276608]
[1610117681298,0.1192,41246.0,41219.0,3.9937]
[1610117682001,0.09496,41256.0,41219.0,3.9937]
[1610117682197,1.0,41259.0,41219.0,3.9937]
[1610117682399,0.00029667,41255.0,41219.0,3.9937]
[1610117682898,0.00029667,41255.0,41224.0,0.13632608]
[1610117682899,0.09717,41255.0,41224.0,0.13632608]
[1610117684699,0.09717,41255.0,41231.0,0.13632608]
[1610117684902,0.09717,41255.0,41232.0,0.4837]
[1610117685301,0.09717,41255.0,41231.0,0.13632608]
[1610117685503,0.09717,41255.0,41237.0,3.9391]
[1610117686706,0.09717,41255.0,41252.0,0.13632608]
[1610117687105,0.09717,41255.0,41252.0,0.63232608]
[1610117687512,1.0,41274.0,41252.0,0.63232608]
[1610117687708,1.0,41274.0,41252.0,0.13632608]
[1610117687909,1.0,41274.0,41252.0,0.24429608]
[1610117688111,0.4278,41290.0,41255.0,3.713]
[1610117688710,0.4278,41290.0,41264.0,0.13632608]
[1610117690410,0.4278,41290.0,41264.0,0.65322608]
[1610117690611,0.4278,41290.0,41264.0,0.5169]
[1610117690809,0.13632608,41265.0,41264.0,0.5169]
[1610117693011,0.13632608,41265.0,41252.0,0.10797]
[1610117693211,0.13632608,41265.0,41243.0,0.11175]
[1610117693212,0.13632608,41265.0,41243.0,3.88315]
[1610117693512,0.23481608,41265.0,41243.0,3.7714]
[1610117694211,1.0,41254.0,41243.0,3.7714]
[1610117694414,1.12298,41254.0,41243.0,3.7714]
[1610117694712,0.13632608,41244.0,41243.0,3.7714]
[1610117696015,0.20902608,41244.0,41243.0,3.7714]
[1610117696416,0.13632608,41244.0,41243.0,3.7714]
[1610117697516,0.20882608,41244.0,41243.0,3.7714]
[1610117698019,0.20882608,41244.0,41243.0,3.77166247]
[1610117698020,0.13632608,41244.0,41243.0,3.77166247]
[1610117698922,0.20932608,41244.0,41243.0,3.77166247]
[1610117699321,0.13632608,41244.0,41243.0,3.77166247]
[1610117700322,0.20902608,41244.0,41243.0,3.77166247]
[1610117701822,0.13632608,41244.0,41243.0,3.77166247]
[1610117702921,0.21002608,41244.0,41243.0,3.77166247]
[1610117703421,0.13632608,41244.0,41243.0,3.77166247]
[1610117704625,0.20792608,41244.0,41243.0,3.77166247]
[1610117705725,0.13632608,41244.0,41243.0,3.77166247]
[1610117706424,0.07962,41255.0,41243.0,3.77166247]
[1610117706625,0.07962,41255.0,41243.0,0.00026247]
[1610117706825,0.09849,41265.0,41254.0,0.13632608]
[1610117707025,1.0,41278.0,41254.0,0.13632608]
[1610117707228,1.0,41278.0,41255.0,3.36166244]
[1610117707625,1.0,41278.0,41256.0,0.00026241]
[1610117708326,0.0734,41288.0,41256.0,0.00026241]
[1610117708725,0.00029654,41287.0,41256.0,0.00026241]
[1610117708925,0.13632608,41257.0,41256.0,0.00026241]
[1610117711332,0.20902608,41257.0,41256.0,0.00026241]
[1610117711532,0.13632608,41257.0,41256.0,0.00026241]
[1610117712032,0.11474,41287.0,41256.0,0.00026241]
[1610117713033,0.11474,41287.0,41262.0,0.13632608]
[1610117713235,0.11474,41287.0,41262.0,0.26029608]
[1610117713434,0.11474,41287.0,41263.0,0.00026238]
[1610117714035,0.1569,41290.0,41263.0,0.00026238]
[1610117714638,0.1569,41290.0,41263.0,0.46626238]
[1610117714938,0.13632608,41264.0,41263.0,0.46626238]
[1610117715136,0.13632608,41264.0,41263.0,0.466]
[1610117715337,0.13632608,41264.0,41263.0,0.46626237]
[1610117719642,0.56757017,41264.0,41263.0,0.46626237]
[1610117720143,0.56757017,41264.0,41263.0,0.466]
[1610117720341,0.56757017,41264.0,41263.0,0.46626237]
[1610117722346,0.43124409,41264.0,41263.0,0.46626237]
[1610117722947,0.43124409,41264.0,41263.0,0.60258845]
[1610117723748,0.43124409,41264.0,41263.0,0.63022221]
[1610117724649,0.43124409,41264.0,41263.0,0.60258845]
[1610117726148,0.43124409,41264.0,41263.0,0.63021957]
[1610117726750,0.43124409,41264.0,41263.0,0.02789349]
[1610117726950,0.56757017,41264.0,41263.0,0.02789349]
[1610117727153,0.56757017,41264.0,41263.0,0.00026237]
[1610117727750,0.56757017,41264.0,41250.0,3.4215]
[1610117727751,0.69418017,41264.0,41253.0,0.00026234]
[1610117727953,0.69418017,41264.0,41263.0,0.00026234]
[1610117728251,0.69418017,41264.0,41254.0,0.00026236]
[1610117728452,0.69418017,41264.0,41263.0,0.00026236]
[1610117728853,0.69418017,41264.0,41255.0,0.00026236]
[1610117729054,0.55785409,41264.0,41263.0,0.00026236]
[1610117729255,0.55785409,41264.0,41256.0,0.00026236]
[1610117729454,0.55785409,41264.0,41263.0,0.00026236]
[1610117729855,0.55785409,41264.0,41251.0,0.00026236]
[1610117730155,0.55785409,41264.0,41263.0,0.00026238]
[1610117730358,0.55785409,41264.0,41252.0,0.00026238]
[1610117730658,0.55785409,41264.0,41251.0,0.00026238]
[1610117730956,0.13632608,41254.0,41253.0,0.00026238]
[1610117731156,0.13632608,41254.0,41252.0,0.13632608]
[1610117731456,0.13632608,41254.0,41253.0,0.00026241]
[1610117734462,0.13632608,41254.0,41253.0,0.0279272]
[1610117735261,0.13632608,41254.0,41253.0,0.00026241]
[1610117735561,0.13632608,41254.0,41253.0,0.02792763]
[1610117736863,0.13632608,41254.0,41253.0,3.54752763]
[1610117744463,0.13632608,41254.0,41253.0,0.02792763]
[1610117745362,0.13632608,41254.0,41249.0,0.02792626]
[1610117745562,0.13632608,41254.0,41253.0,0.02792629]
[1610117745762,0.13632608,41254.0,41250.0,0.02792614]
[1610117746262,0.13632608,41254.0,41253.0,0.02792614]
[1610117746462,0.13632608,41254.0,41251.0,0.02792685]
[1610117746664,0.13632608,41254.0,41253.0,0.02792724]
[1610117746865,0.13632608,41254.0,41252.0,0.02792763]
[1610117747065,0.13632608,41254.0,41253.0,0.02793023]
[1610117747668,0.13632608,41254.0,41249.0,0.02793051]
[1610117747867,0.13632608,41254.0,41248.0,3.41563]
[1610117747868,0.13632608,41254.0,41253.0,0.02793175]
[1610117748268,0.13632608,41254.0,41249.0,0.02793453]
[1610117748469,0.13632608,41254.0,41253.0,0.02793579]
[1610117748668,0.13632608,41254.0,41250.0,0.02793609]
[1610117748968,0.13632608,41254.0,41249.0,0.02793654]
[1610117749271,0.13632608,41254.0,41251.0,0.00026246]
[1610117749469,0.13632608,41254.0,41250.0,0.02793662]
[1610117749868,0.13632608,41254.0,41252.0,0.00026246]
[1610117750168,0.13632608,41254.0,41251.0,0.00026246]
[1610117750369,0.13632608,41254.0,41253.0,0.00026246]
[1610117750570,0.13632608,41254.0,41252.0,0.00026246]
[1610117750771,0.13632608,41254.0,41253.0,0.00026246]
[1610117751369,0.13632608,41254.0,41249.0,0.02793431]
[1610117751570,0.13632608,41254.0,41249.0,0.00026246]
[1610117752070,0.13632608,41254.0,41250.0,0.00026246]
[1610117752370,0.13632608,41254.0,41249.0,0.02793466]
[1610117752773,0.13632608,41254.0,41251.0,0.00026246]
[1610117752973,0.13632608,41254.0,41250.0,0.00026246]
[1610117753172,0.13632608,41254.0,41252.0,0.00026246]
[1610117753473,0.13632608,41254.0,41251.0,0.00026202]
[1610117753673,0.13632608,41254.0,41251.0,0.02777921]
[1610117754276,0.13632608,41254.0,41251.0,0.00026202]
[1610117754474,0.13632608,41254.0,41248.0,3.41563]
[1610117754475,0.13632608,41254.0,41249.0,0.02777954]
[1610117754875,0.13632608,41254.0,41252.0,0.00026202]
[1610117755076,0.13632608,41254.0,41250.0,0.00026202]
[1610117755375,0.13632608,41254.0,41249.0,0.02777954]
[1610117755575,0.13632608,41254.0,41251.0,0.00026202]
[1610117755777,0.13632608,41254.0,41250.0,0.00026202]
[1610117761588,0.13632608,41254.0,41251.0,0.00026201]
[1610117762092,0.13632608,41254.0,41249.0,0.02777953]
[1610117769205,0.13632608,41254.0,41249.0,0.16410561]
[1610117769507,0.13632608,41254.0,41250.0,0.02777572]
[1610117774612,0.13632608,41254.0,41253.0,3.6823]
[1610117775014,0.13632608,41254.0,41253.0,3.70981088]
[1610117775415,0.43124409,41264.0,41253.0,3.71007285]
[1610117775813,0.43124409,41264.0,41254.0,0.02776706]
[1610117776613,0.43124409,41264.0,41254.0,0.0805402]
[1610117777214,0.43124409,41264.0,41263.0,0.13632608]
[1610117777415,0.43124409,41264.0,41263.0,0.24269608]
[1610117777718,0.43124409,41264.0,41263.0,0.27045893]
[1610117778515,0.43124409,41264.0,41263.0,0.13413285]
[1610117779316,0.56757017,41264.0,41263.0,0.54173285]
[1610117780817,0.56757017,41264.0,41263.0,0.13413285]
[1610117782318,0.56757017,41264.0,41263.0,0.68183285]
[1610117798343,0.56757017,41264.0,41263.0,0.13413285]
[1610117800345,2.06757017,41264.0,41263.0,0.13413285]
[1610117800546,2.06757017,41264.0,41248.0,0.09493]
[1610117800743,2.06757017,41264.0,41246.0,3.7325]
[1610117800946,2.06757017,41264.0,41249.0,0.02661918]
[1610117801150,2.06757017,41264.0,41247.0,0.02661945]
[1610117801344,2.7694,41262.0,41250.0,0.00025927]
[1610117801648,0.13632608,41251.0,41240.0,0.02662483]
[1610117802051,0.13632608,41251.0,41250.0,0.00025934]
[1610117802245,0.13632608,41251.0,41230.0,3.16729]
[1610117802246,0.13632608,41251.0,41241.0,0.00025934]
[1610117802447,0.13632608,41251.0,41240.0,0.00025934]
[1610117802747,0.13632608,41251.0,41242.0,0.00025934]
[1610117802950,0.13632608,41251.0,41241.0,0.00025934]
[1610117803348,0.13632608,41251.0,41240.0,0.00025934]
[1610117803550,0.13632608,41241.0,41230.0,0.10459]
[1610117803750,0.13632608,41241.0,41238.0,3.4878]
[1610117804151,0.13632608,41241.0,41240.0,0.00025936]
[1610117804450,0.13632608,41241.0,41238.0,3.4878]
[1610117804451,0.13632608,41241.0,41239.0,0.00025936]
[1610117804750,0.13632608,41241.0,41240.0,0.00025936]
[1610117805151,0.13632608,41241.0,41239.0,0.00025936]
[1610117805952,0.13632608,41241.0,41231.0,0.0266321]
[1610117806255,0.13632608,41241.0,41240.0,0.00025936]
[1610117806452,0.13632608,41241.0,41232.0,0.00025939]
[1610117806654,0.13632608,41241.0,41240.0,0.00025941]
[1610117807055,0.13632608,41241.0,41231.0,0.02637274]
[1610117807056,0.13632608,41241.0,41233.0,0.00025941]
[1610117807355,0.13632608,41241.0,41240.0,0.00025941]
[1610117807560,0.13632608,41241.0,41231.0,0.00025941]
[1610117807757,0.13632608,41241.0,41240.0,0.00025941]
[1610117807955,0.13632608,41241.0,41232.0,0.00025941]
[1610117808258,0.13632608,41241.0,41237.0,3.2415]
[1610117808456,0.13632608,41241.0,41233.0,0.0002594]
[1610117808756,0.13632608,41241.0,41236.0,3.6026]
[1610117809054,0.13632608,41241.0,41237.0,0.0002594]
[1610117815866,0.13632608,41241.0,41236.0,3.6026]
[1610117816467,0.13632608,41241.0,41237.0,0.00025877]
[1610117818069,0.13632608,41241.0,41236.0,3.6026]
[1610117818470,0.13632608,41241.0,41237.0,0.00025877]
[1610117818971,0.13632608,41241.0,41236.0,3.6026]
[1610117824077,0.13632608,41241.0,41237.0,0.00025879]
[1610117831384,0.13632608,41241.0,41237.0,0.02640896]
[1610117831984,0.13632608,41241.0,41240.0,3.8159]
[1610117832484,0.13632608,41241.0,41240.0,3.84230681]
[1610117834488,0.13632608,41241.0,41240.0,3.81615872]
[1610117835586,0.13632608,41241.0,41240.0,3.97862946]
[1610117836388,0.13632608,41241.0,41240.0,3.9524848]
[1610117836789,0.11646,41256.0,41240.0,0.28937317]
[1610117837089,0.43124409,41264.0,41240.0,0.28937317]
[1610117837090,0.43124409,41264.0,41255.0,3.6626]
[1610117837489,0.00029647,41263.0,41256.0,0.00025863]
[1610117837687,0.43124409,41264.0,41256.0,0.00025863]
[1610117837688,0.43124409,41264.0,41258.0,0.13632608]
[1610117837987,0.43124409,41264.0,41259.0,0.0002586]
[1610117838387,0.00029645,41263.0,41259.0,0.0002586]
[1610117838786,0.43124409,41264.0,41259.0,0.0002586]
[1610117839089,0.43124409,41264.0,41259.0,0.1117986]
[1610117839690,0.43124409,41264.0,41263.0,0.13632608]
[1610117839890,0.43124409,41264.0,41263.0,0.71432608]
[1610117840088,0.43124409,41264.0,41263.0,0.71458461]
[1610117842193,0.43154047,41264.0,41263.0,0.71458461]
[1610117842593,0.43124409,41264.0,41263.0,0.71458461]
[1610117842895,0.43124409,41264.0,41263.0,0.13658461]
[1610117843301,0.43124409,41264.0,41263.0,0.00025853]
[1610117843895,0.43124409,41264.0,41260.0,0.13658461]
[1610117844094,0.43124409,41264.0,41263.0,0.00025853]
[1610117844294,0.43124409,41264.0,41261.0,0.00025853]
[1610117845195,0.43124409,41264.0,41263.0,4.0153]
[1610117845501,0.43124409,41264.0,41263.0,4.01555853]
[1610117846496,0.43124409,41264.0,41263.0,0.02637516]
[1610117846696,0.43124409,41264.0,41263.0,3.65557516]
[1610117846998,0.43124409,41264.0,41263.0,3.6292]
[1610117847198,0.43124409,41264.0,41263.0,3.65557305]
[1610117847600,0.43124409,41264.0,41263.0,3.62945848]
[1610117849600,0.13632608,41282.0,41263.0,3.62945848]
[1610117849802,0.13632608,41282.0,41263.0,0.00025848]
[1610117850001,0.13632608,41282.0,41281.0,3.8969]
[1610117850201,0.13632608,41282.0,41281.0,4.02246]
[1610117850401,0.13632608,41282.0,41281.0,4.02271841]
[1610117851602,0.13632608,41282.0,41281.0,4.15904449]
[1610117852503,0.13632608,41282.0,41281.0,4.15878608]
[1610117855705,0.13632608,41296.0,41281.0,4.15878608]
[1610117856507,0.13632608,41296.0,41282.0,0.00025831]
[1610117857708,0.08546,41310.0,41282.0,0.00025831]
[1610117859408,0.08546,41310.0,41281.0,4.02246]
[1610117859809,0.08546,41310.0,41285.0,0.13632608]
[1610117860510,1.2931,41325.0,41285.0,0.13632608]
[1610117861512,0.0718,41311.0,41296.0,3.0514]
[1610117861812,0.13632608,41297.0,41285.0,0.13632608]
[1610117862011,0.13632608,41297.0,41296.0,3.0492]
[1610117862626,0.08291,41311.0,41296.0,3.0492]
[1610117862813,0.2931,41325.0,41296.0,3.0492]
[1610117862814,0.0723,41316.0,41296.0,3.0492]
[1610117863016,0.0723,41316.0,41291.0,0.08385]
[1610117863214,0.0723,41316.0,41309.0,2.8142]
[1610117863815,0.0723,41316.0,41312.0,0.13632608]
[1610117864012,0.0723,41316.0,41309.0,2.8142]
[1610117864212,0.12409,41322.0,41309.0,2.8142]
[1610117865515,0.0733,41321.0,41309.0,2.8142]
[1610117865815,0.13632608,41310.0,41309.0,2.95052608]
[1610117867619,0.13632608,41310.0,41309.0,2.8142]
[1610117872522,0.13632608,41310.0,41300.0,0.09683]
[1610117872725,0.13632608,41310.0,41294.0,3.7829]
[1610117873625,0.00029624,41309.0,41294.0,3.7829]
[1610117873925,0.00029624,41309.0,41291.0,0.08385]
[1610117873926,0.13632608,41295.0,41291.0,0.08385]
[1610117874125,0.13632608,41295.0,41282.0,3.2908]
[1610117875129,0.13632608,41295.0,41273.0,0.13632608]
[1610117875329,0.13632608,41295.0,41291.0,3.2594]
[1610117876631,0.13632608,41295.0,41284.0,0.13632608]
[1610117876830,0.13632608,41295.0,41288.0,3.0288]
[1610117877731,3.103,41322.0,41292.0,0.13632608]
[1610117877932,3.103,41322.0,41292.0,0.24037608]
[1610117878632,0.00029621,41321.0,41292.0,0.24037608]
[1610117879935,0.13632608,41293.0,41292.0,0.24037608]
[1610117888041,0.13632608,41293.0,41292.0,0.24063696]
[1610117889039,0.13632608,41293.0,41292.0,3.34943696]
[1610117889240,0.0838,41303.0,41292.0,0.24063696]
[1610117889439,0.0838,41303.0,41302.0,3.3713]
[1610117889839,0.0838,41303.0,41302.0,3.50762608]
[1610117890440,0.0838,41303.0,41302.0,3.50788693]
[1610117890639,0.13632608,41304.0,41302.0,3.50762608]
[1610117891442,0.08027,41313.0,41302.0,3.50762608]
[1610117891740,0.1569,41342.0,41302.0,3.50762608]
[1610117891942,0.1569,41342.0,41314.0,0.13632608]
[1610117892541,0.1569,41342.0,41322.0,3.2908]
[1610117892742,0.00029612,41341.0,41322.0,3.2908]
[1610117893041,0.08802612,41341.0,41322.0,3.2908]
[1610117893543,0.00029612,41340.0,41322.0,3.2908]
[1610117893843,0.13632608,41323.0,41322.0,3.2908]
[1610117894242,0.13632608,41323.0,41314.0,0.13632608]
[1610117894443,0.13632608,41323.0,41316.0,3.0868]
[1610117895143,0.09471,41327.0,41314.0,0.13632608]
[1610117895345,0.09471,41327.0,41322.0,3.0574]
[1610117895944,0.09471,41327.0,41326.0,0.13632608]
[1610117896544,0.13632608,41336.0,41326.0,0.13632608]
[1610117897646,0.13632608,41336.0,41327.0,0.00026075]
[1610117897946,0.13632608,41336.0,41335.0,0.13632608]
[1610117898147,0.13632608,41336.0,41327.0,0.00026075]
[1610117898447,0.13632608,41336.0,41320.0,2.8327]
[1610117898750,0.13632608,41336.0,41328.0,0.00026075]
[1610117898949,0.13632608,41336.0,41321.0,0.00026075]
[1610117899147,0.13632608,41336.0,41329.0,2.70726075]
[1610117899346,0.13632608,41336.0,41329.0,0.00026075]
[1610117899548,0.0728,41335.0,41332.0,3.7207]
[1610117899747,0.13632608,41336.0,41332.0,3.7207]
[1610117900648,0.0714,41335.0,41332.0,3.7207]
[1610117900848,0.13632608,41336.0,41332.0,3.7207]
[1610117901750,0.0714,41335.0,41332.0,3.7207]
[1610117902153,0.13632608,41336.0,41332.0,3.7207]
[1610117902350,0.13632608,41336.0,41314.0,0.099]
[1610117902549,0.13632608,41336.0,41317.0,3.4187]
[1610117902753,0.13632608,41336.0,41317.0,3.53441]
[1610117903253,0.13632608,41336.0,41318.0,0.00026076]
[1610117904049,0.08773,41341.0,41325.0,0.13632608]
[1610117904349,3.8185,41353.0,41325.0,0.13632608]
[1610117904849,0.25476516,41327.0,41325.0,0.13632608]
[1610117905249,0.25476516,41327.0,41326.0,0.5035]
[1610117905450,0.25476516,41327.0,41326.0,0.50376075]
[1610117905950,0.39109124,41327.0,41326.0,0.50376075]
[1610117907150,0.39109124,41327.0,41326.0,0.00026075]
[1610117910555,0.39109124,41327.0,41318.0,0.00026077]
[1610117910758,0.48135124,41327.0,41304.0,2.9804]
[1610117910957,0.48135124,41327.0,41319.0,0.0002608]
[1610117911356,0.48135124,41327.0,41305.0,0.0269551]
[1610117911357,0.48135124,41327.0,41305.0,0.00026082]
[1610117911559,0.48135124,41327.0,41320.0,0.00026096]
[1610117911758,0.48135124,41327.0,41306.0,0.00026096]
[1610117911958,0.13632608,41307.0,41306.0,0.00026096]
[1610117912159,0.13632608,41307.0,41304.0,2.9804]
[1610117912360,0.13632608,41307.0,41306.0,0.00026099]
[1610117912560,0.13632608,41307.0,41304.0,2.9804]
[1610117912561,0.13632608,41307.0,41305.0,0.00026099]
[1610117912962,0.13632608,41307.0,41306.0,0.00026099]
[1610117913275,0.13632608,41307.0,41287.0,2.744]
[1610117913276,0.13632608,41307.0,41304.0,0.00026099]
[1610117913463,0.13632608,41307.0,41306.0,0.00026099]
[1610117913663,0.13632608,41307.0,41305.0,0.00026099]
[1610117913864,0.13632608,41307.0,41293.0,0.02728963]
[1610117914266,0.13632608,41307.0,41306.0,0.00026102]
[1610117914566,0.13632608,41307.0,41294.0,0.00026102]
[1610117914762,0.13632608,41307.0,41293.0,0.00026102]
[1610117914963,0.13632608,41307.0,41295.0,0.00026102]
[1610117915164,0.13632608,41307.0,41294.0,0.00026102]
[1610117915476,0.13632608,41307.0,41293.0,0.00026102]
[1610117915677,0.13632608,41307.0,41295.0,0.00026102]
[1610117916066,0.08029,41308.0,41298.0,0.13632608]
[1610117916466,0.08029,41308.0,41299.0,0.00026102]
[1610117916966,0.08029,41308.0,41298.0,0.13632608]
[1610117917167,0.08029,41308.0,41300.0,0.00026101]
[1610117917666,0.08029,41308.0,41299.0,0.00026101]
[1610117917867,0.08029,41308.0,41301.0,0.00026101]
[1610117918066,0.13632608,41302.0,41300.0,0.00026101]
[1610117918466,0.13632608,41302.0,41298.0,0.13632608]
[1610117918668,0.13632608,41302.0,41301.0,0.00026101]
[1610117918966,0.13632608,41302.0,41299.0,0.00026101]
[1610117919165,0.13632608,41302.0,41301.0,0.00026101]
[1610117919368,0.13632608,41302.0,41300.0,0.00026101]
[1610117919766,0.13632608,41302.0,41301.0,0.00026101]
[1610117920270,0.13632608,41302.0,41299.0,0.00026101]
[1610117920468,0.13632608,41302.0,41301.0,0.00026099]
[1610117920767,0.13632608,41302.0,41300.0,0.00026099]
[1610117920967,0.13632608,41302.0,41299.0,0.00026099]
[1610117921267,0.13632608,41302.0,41301.0,0.00026099]
[1610117921472,0.13632608,41302.0,41300.0,0.00026099]
[1610117921768,0.13632608,41302.0,41299.0,0.00026099]
[1610117922172,0.13632608,41302.0,41301.0,0.00026099]
[1610117922370,0.13632608,41302.0,41300.0,0.00026097]
[1610117922571,0.20972608,41302.0,41301.0,0.00026097]
[1610117922772,0.13632608,41302.0,41301.0,0.00026097]
[1610117922972,0.08029,41308.0,41301.0,0.00026097]
[1610117923172,0.12435,41317.0,41299.0,0.00026097]
[1610117923372,0.1569,41344.0,41299.0,0.02702461]
[1610117923673,0.1569,41344.0,41309.0,3.1837]
[1610117923873,0.1569,41344.0,41310.0,0.00026096]
[1610117924173,0.1569,41344.0,41318.0,0.13632608]
[1610117924374,0.1569,41344.0,41319.0,0.00026094]
[1610117925072,0.0729,41336.0,41319.0,0.00026094]
[1610117925574,0.1569,41344.0,41319.0,0.00026094]
[1610117925775,0.1569,41344.0,41320.0,0.42]
[1610117925978,0.1569,41344.0,41321.0,0.0002609]
[1610117926578,0.1569,41361.0,41322.0,3.8753]
[1610117926778,0.1569,41361.0,41323.0,0.0002609]
[1610117926978,0.0715,41341.0,41323.0,0.0002609]
[1610117927179,0.0715,41341.0,41325.0,2.9187]
[1610117927378,0.0715,41341.0,41325.0,0.00026088]
[1610117927578,0.0715,41341.0,41326.0,2.83306088]
[1610117927878,0.0716,41336.0,41326.0,2.83306088]
[1610117928078,0.48135124,41327.0,41326.0,2.83306088]
[1610117928378,0.39109124,41327.0,41326.0,2.83306088]
[1610117928579,0.39109124,41327.0,41326.0,2.83306085]
[1610117929382,0.25476516,41327.0,41326.0,2.83306085]
[1610117944601,0.25476516,41327.0,41326.0,2.8608791]
[1610117945201,0.25476516,41327.0,41326.0,2.83306085]
[1610117945402,0.25476516,41327.0,41326.0,0.00026085]
[1610117949510,0.25476516,41327.0,41326.0,3.00216085]
[1610117950711,0.25476516,41327.0,41326.0,3.0299844]
[1610117953720,0.2845,41390.0,41326.0,4.5299844]
[1610117954018,0.2845,41390.0,41326.0,4.58332182]
[1610117954219,0.2845,41390.0,41355.0,0.13632608]
[1610117954420,0.2845,41390.0,41363.0,3.1431]
[1610117954620,0.00029579,41389.0,41363.0,3.1431]
[1610117955020,0.10828579,41389.0,41364.0,0.00026302]
[1610117955422,0.00029576,41388.0,41364.0,0.00026302]
[1610117956124,0.00029576,41388.0,41369.0,0.13632608]
[1610117956424,0.00029576,41388.0,41370.0,0.00026296]
[1610117957127,0.10799,41389.0,41370.0,0.00026296]
[1610117957326,0.10799,41389.0,41364.0,0.00026296]
[1610117957525,0.10799,41389.0,41371.0,0.00026296]
[1610117957928,0.10799,41389.0,41365.0,0.00026296]
[1610117958227,0.10799,41389.0,41373.0,0.13632608]
[1610117958629,0.10799,41389.0,41374.0,0.00026296]
[1610117959225,0.10799,41389.0,41373.0,0.13632608]
[1610117959427,0.10799,41389.0,41375.0,0.00026295]
[1610117959627,0.10799,41389.0,41374.0,0.00026295]
[1610117959927,0.10799,41389.0,41376.0,0.00026295]
[1610117960127,0.2845,41390.0,41375.0,0.00026295]
[1610117960128,0.13632608,41377.0,41375.0,0.00026295]
[1610117960530,0.13632608,41377.0,41374.0,0.00026295]
[1610117960729,0.13632608,41377.0,41376.0,0.00026295]
[1610117960929,0.13632608,41377.0,41375.0,0.00026295]
[1610117961330,0.13632608,41377.0,41373.0,0.13632608]
[1610117961331,0.13632608,41377.0,41374.0,0.00026293]
[1610117961529,0.13632608,41377.0,41373.0,0.13632608]
[1610117963431,0.13632608,41377.0,41374.0,0.0002629]
[1610117964136,0.13632608,41377.0,41376.0,0.5529]
[1610117964342,0.13632608,41377.0,41376.0,0.5531629]
[1610117964536,0.12268,41390.0,41376.0,0.5531629]
[1610117964940,0.12268,41390.0,41376.0,0.5529]
[1610117965337,0.1569,41414.0,41376.0,0.5529]
[1610117965540,0.2299,41414.0,41376.0,0.5529]
[1610117965839,0.1569,41414.0,41376.0,0.5529]
[1610117966040,0.00029569,41413.0,41376.0,0.5529]
[1610117966241,0.11480569,41413.0,41387.0,0.13632608]
[1610117966842,0.00029569,41412.0,41387.0,0.13632608]
[1610117967042,0.24557738,41388.0,41387.0,0.13632608]